bitfinex/quotes_ETHUSD_20240721
["timestamp","ask_amount","ask_price","bid_price","bid_amount"]
[1721575898570,2.84486,3515.1,3515.0,18.6816377]
[1721575898914,2.93368593,3515.1,3515.0,18.6816377]
[1721575899607,10.26814912,3515.1,3515.0,18.6816377]
[1721575899824,9.85257128,3515.1,3515.0,18.6816377]
[1721575900861,7.00771128,3515.1,3515.0,18.6816377]
[1721575901078,5.93368593,3515.1,3514.9,18.6816377]
[1721575901279,7.42351724,3515.1,3514.9,18.6816377]
[1721575901485,7.42338474,3515.1,3514.9,18.6816377]
[1721575901896,2.84495,3515.0,3514.9,18.6816377]
[1721575902336,2.9337072,3515.0,3514.9,18.6816377]
[1721575902504,4.42340601,3515.0,3514.9,18.6816377]
[1721575903425,7.26835601,3515.0,3514.9,18.6816377]
[1721575903603,10.06121749,3515.0,3514.9,18.6816377]
[1721575904136,12.90616749,3515.0,3514.9,18.6816377]
[1721575905205,10.06121749,3515.0,3514.9,18.6816377]
[1721575905726,11.84843932,3515.0,3514.9,18.6816377]
[1721575905911,10.06121749,3515.0,3514.9,18.6816377]
[1721575907005,2.8453,3514.6,3514.4,18.6816377]
[1721575907234,5.84535,3514.5,3514.3,18.6816377]
[1721575907399,5.93409816,3514.5,3514.3,18.6816377]
[1721575911900,3.08874816,3514.5,3514.3,18.6816377]
[1721575912102,3.3863612,3514.5,3514.3,18.6816377]
[1721575912340,3.2317412,3514.5,3514.3,18.6816377]
[1721575913051,3.2317412,3514.5,3514.2,2.4849]
[1721575913739,0.3863612,3514.5,3514.2,2.4849]
[1721575914054,0.08874816,3514.5,3514.4,2.4505]
[1721575914219,4.33346561,3515.1,3514.4,3.0005]
[1721575914405,4.63103953,3515.1,3514.4,2.4505]
[1721575914604,0.29757392,3515.1,3514.6,2.4505]
[1721575915828,0.08867127,3515.0,3514.6,2.4505]
[1721575916865,0.08867127,3515.0,3514.8,2.4505]
[1721575917251,0.08867127,3515.0,3514.9,0.55]
[1721575917759,0.08867127,3515.0,3514.9,3.0005]
[1721575917915,0.08867127,3515.0,3514.9,3.585067]
[1721575918314,3.0,3515.5,3515.0,2.3479]
[1721575918554,3.87513744,3515.7,3515.1,0.55]
[1721575918755,3.0,3515.7,3515.1,0.55]
[1721575919413,3.0,3515.7,3515.2,2.3956]
[1721575919609,3.0,3515.7,3515.2,3.0331177]
[1721575919840,2.84418,3516.0,3515.2,3.0331177]
[1721575920124,2.84418,3516.0,3515.3,0.55]
[1721575920320,2.84418,3516.0,3515.4,2.3956]
[1721575920518,4.63042071,3516.5,3515.4,2.3956]
[1721575920745,2.84375,3516.5,3515.6,2.3956]
[1721575920928,4.63001166,3516.7,3515.6,2.3956]
[1721575921130,2.84383,3516.4,3515.6,2.3956]
[1721575921330,4.62999166,3516.8,3515.9,2.3956]
[1721575921657,2.84342,3516.9,3516.0,0.55]
[1721575921957,2.84342,3516.9,3516.1,0.578976]
[1721575922377,2.08417027,3517.5,3516.1,0.578976]
[1721575922378,1.78643166,3517.4,3516.5,2.3956]
[1721575922519,1.78643166,3517.8,3516.6,2.84362]
[1721575922718,0.45214258,3518.1,3516.7,5.23911]
[1721575922719,2.84278,3517.7,3516.7,5.23911]
[1721575923222,1.94009338,3518.1,3516.9,4.4136]
[1721575923447,0.1544592,3518.1,3517.5,2.3956]
[1721575923685,0.1544592,3518.1,3517.5,5.23851]
[1721575923982,0.1544592,3518.1,3517.4,18.6816377]
[1721575923983,0.1544592,3518.1,3518.0,2.84252]
[1721575924191,0.1544592,3518.1,3518.0,8.63064]
[1721575924471,2.08323987,3520.3,3518.9,2.3956]
[1721575924675,0.1544592,3521.6,3518.0,0.55]
[1721575924676,0.42554833,3521.6,3519.5,2.3956]
[1721575924961,0.07771917,3520.2,3519.6,0.55]
[1721575925148,0.29712451,3521.2,3519.5,2.3956]
[1721575925374,0.07769133,3520.1,3519.5,2.3956]
[1721575925568,2.84052,3520.5,3519.5,2.3956]
[1721575925773,0.07802421,3520.0,3519.5,2.3956]
[1721575926067,0.07809305,3519.9,3519.5,2.3956]
[1721575926251,2.84018,3520.9,3519.5,5.23689]
[1721575926449,0.07801848,3519.8,3519.6,3.39122]
[1721575926759,0.35,3521.0,3519.5,2.3956]
[1721575926924,0.35,3521.0,3518.3,2.018]
[1721575926925,1.7,3520.7,3518.3,2.3956]
[1721575927125,2.84107,3519.8,3518.4,1.35803]
[1721575927365,2.8412,3519.7,3518.4,0.80803]
[1721575927550,2.84123,3519.6,3518.3,2.3956]
[1721575927896,0.07809113,3519.5,3518.3,2.3956]
[1721575928055,3.0,3519.5,3518.3,2.3956]
[1721575928264,2.84075,3520.2,3518.3,2.3956]
[1721575928265,2.84149,3519.3,3518.3,2.3956]
[1721575928479,3.0,3519.2,3518.3,2.3956]
[1721575928626,0.07807196,3519.2,3518.4,3.08175]
[1721575928827,0.07807196,3519.2,3518.4,0.23956]
[1721575929070,3.0,3519.5,3518.4,3.08173]
[1721575929346,5.84107,3519.8,3519.4,0.318072]
[1721575930157,3.0,3519.8,3519.4,2.713672]
[1721575930479,2.84131,3519.5,3519.4,2.3956]
[1721575930956,0.07878213,3519.5,3519.4,2.3956]
[1721575931268,1.7,3520.0,3519.1,0.318072]
[1721575931469,2.84155,3519.2,3519.1,0.318072]
[1721575931901,5.92029525,3519.2,3519.1,0.318072]
[1721575932081,5.92029525,3519.2,3518.5,25.9116377]
[1721575932082,2.84165,3519.1,3518.5,25.9116377]
[1721575932292,2.84165,3519.1,3518.3,2.3956]
[1721575932293,2.84165,3519.1,3518.4,18.6816377]
[1721575932608,3.07874525,3519.2,3518.4,18.6816377]
[1721575932609,3.0,3519.2,3518.4,18.6816377]
[1721575932811,3.0,3519.2,3518.5,2.10772377]
[1721575933156,2.84123,3519.6,3518.5,2.10772377]
[1721575933402,2.8414,3519.4,3518.5,2.10772377]
[1721575933603,2.8415,3519.3,3518.5,2.10772377]
[1721575933899,2.84198,3518.7,3518.4,18.6816377]
[1721575934114,2.84175,3519.0,3518.4,18.6816377]
[1721575934407,3.0,3519.2,3518.4,18.6816377]
[1721575934609,3.0,3519.5,3518.6,2.84203]
[1721575934761,2.84113,3519.8,3518.7,2.4816]
[1721575934955,2.84124,3519.6,3518.7,4.59792377]
[1721575935198,3.0,3519.5,3518.7,4.59792377]
[1721575935444,3.0,3519.5,3518.7,2.4816]
[1721575935698,2.84155,3519.2,3518.7,2.4816]
[1721575936003,2.84146,3519.4,3518.7,2.4816]
[1721575936202,0.07862315,3519.3,3518.7,2.4816]
[1721575936702,3.0,3519.8,3518.8,0.55]
[1721575936703,2.84115,3519.7,3518.8,0.55]
[1721575936860,0.07862515,3519.2,3518.8,0.55]
[1721575937065,3.0,3519.6,3518.8,3.44432377]
[1721575937410,2.84082,3520.1,3519.0,2.84163]
[1721575937702,2.84067,3520.3,3519.1,3.0316]
[1721575937863,2.84045,3520.6,3519.1,3.0316]
[1721575938090,0.35,3520.7,3519.1,2.4816]
[1721575938350,2.84072,3520.3,3519.1,2.4816]
[1721575938931,2.84155,3519.3,3519.1,2.4816]
[1721575939104,2.84141,3519.4,3519.1,2.4816]
[1721575939492,2.92017114,3519.3,3519.1,2.4816]
[1721575939697,2.92017114,3519.3,3519.0,0.31776075]
[1721575939698,0.07869114,3519.3,3519.0,0.31776075]
[1721575939894,5.68326,3519.1,3519.0,0.31776075]
[1721575940197,3.48854538,3519.1,3519.0,0.31776075]
[1721575940437,0.07858938,3519.1,3519.0,0.31776075]
[1721575940651,3.0,3519.7,3519.0,2.77006075]
[1721575940952,0.07866433,3519.1,3519.0,2.77006075]
[1721575941152,2.84074,3520.2,3519.0,2.77006075]
[1721575941302,0.53191563,3520.6,3519.0,2.77006075]
[1721575941303,2.841,3519.9,3519.0,2.77006075]
[1721575941504,2.841,3519.9,3519.1,1.11118408]
[1721575941811,0.07866704,3519.8,3519.1,1.11118408]
[1721575942019,2.84116,3519.7,3519.1,1.11118408]
[1721575942202,5.84091,3520.0,3519.1,1.11118408]
[1721575942401,5.84091,3520.0,3519.0,2.77006075]
[1721575942402,2.84121,3519.7,3519.0,2.77006075]
[1721575942629,3.0,3520.0,3519.1,0.55]
[1721575942630,0.07865608,3519.6,3519.1,0.55]
[1721575942847,5.84091,3520.0,3519.1,0.55]
[1721575943247,0.07867146,3519.9,3519.1,3.3916]
[1721575943551,0.07867146,3519.9,3519.2,2.4523]
[1721575943848,5.84067,3520.3,3519.4,2.4523]
[1721575944012,3.0,3520.3,3519.4,2.4523]
[1721575944215,0.07357645,3520.2,3519.4,2.4523]
[1721575944450,0.2347165,3520.6,3519.4,2.4523]
[1721575944451,2.84131,3519.5,3519.4,2.4523]
[1721575944645,2.84131,3519.5,3519.0,0.31776075]
[1721575944646,3.0,3519.5,3519.0,0.31776075]
[1721575944944,0.284131,3519.4,3519.0,0.31776075]
[1721575945101,2.84163,3519.1,3519.0,0.31776075]
[1721575945308,2.91498713,3519.3,3519.0,0.31776075]
[1721575945531,0.0734953,3519.1,3519.0,0.31776075]
[1721575945743,2.84106,3519.9,3519.0,0.31776075]
[1721575945744,2.84122,3519.7,3519.0,0.31776075]
[1721575946123,3.0,3519.6,3519.0,0.31776075]
[1721575946310,2.84091,3520.0,3519.2,2.4523]
[1721575946515,2.84051,3520.5,3519.2,2.4523]
[1721575946741,0.07098501,3519.9,3519.5,2.84124]
[1721575947031,5.66983,3521.4,3519.6,3.0023]
[1721575947032,2.84026,3520.8,3519.6,3.0023]
[1721575947354,2.84057,3520.5,3519.6,3.641654]
[1721575947711,2.83,3521.4,3519.6,3.641654]
[1721575947712,0.07098881,3520.4,3520.0,2.84088]
[1721575948049,2.8395,3521.8,3520.2,2.4523]
[1721575948050,2.83998,3521.2,3520.2,2.4523]
[1721575948646,2.84004,3521.1,3520.2,2.4523]
[1721575948861,2.8397,3521.5,3520.5,2.84049]
[1721575949013,2.83946,3521.8,3520.7,2.4523]
[1721575949216,1.9187,3523.0,3520.7,2.4523]
[1721575949217,2.83912,3522.3,3520.7,2.4523]
[1721575949538,0.2187,3523.0,3521.5,2.83969]
[1721575949539,2.83877,3522.7,3521.5,2.83969]
[1721575949716,1.137967,3523.4,3521.5,8.68168]
[1721575949717,1e-08,3521.6,3521.5,8.68168]
[1721575950071,1.7,3524.1,3521.9,2.83936]
[1721575950072,2.83833,3523.2,3521.9,2.83936]
[1721575950275,5.67564,3523.9,3522.0,5.84153]
[1721575950569,0.07134672,3523.1,3522.1,2.4523]
[1721575950859,2.8376,3524.1,3522.1,2.4523]
[1721575951010,2.83842,3523.1,3522.4,7.23]
[1721575951212,0.07150387,3523.0,3522.1,9.6823]
[1721575951448,2.83769,3524.0,3522.4,2.83896]
[1721575951619,2.83793,3523.7,3522.6,2.4523]
[1721575951822,5.68719,3524.7,3522.6,2.4523]
[1721575951823,2.90955034,3523.6,3522.6,3.47553]
[1721575952129,1.7,3524.5,3522.6,2.4523]
[1721575952353,2.83796,3523.7,3522.6,2.4523]
[1721575952650,2.85,3524.7,3522.6,2.4523]
[1721575952858,0.35,3523.9,3522.6,2.4523]
[1721575953168,2.83837,3523.2,3522.6,2.4523]
[1721575953313,0.35,3523.9,3522.6,3.42053]
[1721575953513,0.07209731,3523.1,3522.6,3.42053]
[1721575953753,2.83763,3524.1,3522.6,3.42053]
[1721575953754,3.0,3524.0,3522.6,2.4523]
[1721575953925,2.83845,3523.1,3522.6,2.4523]
[1721575954430,0.07209155,3523.0,3522.6,2.4523]
[1721575954819,2.91060155,3523.0,3522.6,2.4523]
[1721575955126,0.07209155,3523.0,3522.6,2.4523]
[1721575955312,2.83859,3522.9,3522.6,2.4523]
[1721575955510,0.0720937,3522.9,3522.6,2.4523]
[1721575955832,0.07208928,3522.8,3522.6,2.4523]
[1721575956028,3.0,3523.2,3522.6,2.4523]
[1721575956352,2.83865,3522.8,3522.6,2.4523]
[1721575956523,0.07210252,3523.1,3522.6,2.4523]
[1721575956874,2.85,3524.7,3522.6,2.4523]
[1721575956875,5.83825,3523.3,3522.6,2.4523]
[1721575957076,0.07211556,3523.0,3522.6,2.4523]
[1721575957279,5.83721,3524.6,3522.6,2.4523]
[1721575957280,3.13450543,3524.1,3522.9,2.83857]
[1721575957577,2.83785,3523.8,3522.8,7.23]
[1721575958066,2.91012286,3523.7,3522.8,7.23]
[1721575958284,0.07216286,3523.7,3522.9,2.2877]
[1721575958487,0.07216286,3523.7,3522.9,5.12626]
[1721575958774,0.29688543,3524.1,3523.0,7.0842078]
[1721575958775,2.8376,3524.1,3523.0,7.0842078]
[1721575958932,2.83744,3524.3,3523.1,2.8384]
[1721575959127,2.83764,3524.1,3523.2,0.55]
[1721575959329,0.07221778,3524.2,3523.2,0.55]
[1721575959529,0.07221778,3524.2,3523.1,0.55]
[1721575959530,2.83752,3524.2,3523.1,0.55]
[1721575959860,2.8376,3524.2,3523.2,0.70841478]
[1721575960041,2.83763,3524.1,3523.2,0.70841478]
[1721575960252,3.0,3524.0,3523.2,0.70841478]
[1721575960748,3.0,3524.3,3523.3,2.4072]
[1721575961065,2.83763,3524.1,3523.3,2.4072]
[1721575961272,2.83791,3523.8,3523.3,2.4072]
[1721575961430,3.0,3524.0,3523.3,2.4072]
[1721575961431,3.0722789,3524.0,3523.3,2.4072]
[1721575961637,2.83805,3523.6,3523.3,2.4072]
[1721575961837,0.07225685,3523.5,3523.3,2.4072]
[1721575962557,2.91034685,3523.5,3523.3,2.4072]
[1721575962944,2.83816,3523.4,3523.3,2.4072]
[1721575963167,0.64707554,3523.5,3522.8,2.4072]
[1721575963367,0.07225244,3523.4,3522.8,2.4072]
[1721575963593,3.07225244,3523.4,3522.8,2.4072]
[1721575963765,0.07225244,3523.4,3522.8,2.4072]
[1721575963966,2.91044244,3523.4,3522.8,2.4072]
[1721575964165,2.83833,3523.2,3522.8,2.4072]
[1721575964476,2.83833,3523.2,3522.4,7.23]
[1721575964477,2.83873,3522.8,3522.4,7.23]
[1721575964982,0.07215389,3522.7,3522.4,7.23]
[1721575965408,3.0,3523.1,3522.4,7.23]
[1721575965557,0.07214948,3522.6,3522.5,2.4072]
[1721575965762,2.83776,3524.0,3522.7,2.83871]
[1721575965958,2.83776,3524.0,3522.8,5.529671]
[1721575965959,3.121536,3524.0,3522.8,5.529671]
[1721575966173,2.83784,3523.8,3522.9,2.4072]
[1721575966382,0.07214044,3523.9,3522.9,5.24574]
[1721575966669,0.07217565,3523.8,3523.0,0.55]
[1721575966901,2.91001565,3523.8,3523.0,0.55]
[1721575967086,2.83792,3523.7,3522.9,2.4072]
[1721575967276,2.83792,3523.7,3522.9,3.3993071]
[1721575967476,0.07217021,3523.6,3522.9,3.3993071]
[1721575967874,2.83776,3523.9,3522.9,2.4072]
[1721575968087,0.07219365,3523.5,3522.9,2.4072]
[1721575968297,5.83761,3524.1,3522.9,2.4072]
[1721575968596,0.07219248,3523.4,3522.9,2.4072]
[1721575968897,0.07218807,3523.3,3522.9,2.4072]
[1721575969294,2.83803,3523.6,3522.9,2.4072]
[1721575969295,2.83801,3523.6,3522.9,2.4072]
[1721575969466,0.06977073,3523.2,3522.9,2.4072]
[1721575969789,0.283801,3523.6,3522.9,2.4072]
[1721575969972,0.06976632,3523.1,3522.9,2.4072]
[1721575970301,0.0697583,3523.0,3522.9,2.4072]
[1721575970470,0.0697583,3523.0,3522.4,7.23]
[1721575970471,2.83865,3522.8,3522.4,7.23]
[1721575970665,1.9187,3524.4,3522.4,7.23]
[1721575970666,3.0561,3524.4,3522.4,7.23]
[1721575970867,0.06979812,3522.7,3522.5,2.4072]
[1721575971181,5.83825,3523.3,3522.5,2.4072]
[1721575971381,2.83852,3523.0,3522.5,2.4072]
[1721575971902,2.83881,3522.6,3522.5,2.4072]
[1721575972276,2.9085693,3522.6,3522.5,2.4072]
[1721575973121,2.9085693,3522.6,3521.9,7.23]
[1721575973122,2.83907,3522.3,3521.9,7.23]
[1721575973412,2.83923,3522.1,3521.9,7.23]
[1721575973613,0.0697593,3522.6,3521.9,7.23]
[1721575973776,0.0697593,3522.6,3521.4,21.0888377]
[1721575973777,2.83953,3521.8,3521.4,21.0888377]
[1721575973979,2.83954,3521.7,3521.4,2.4072]
[1721575974402,0.06957042,3521.6,3521.4,2.4072]
[1721575974769,2.83969,3521.5,3521.4,2.4072]
[1721575975285,2.83961,3521.6,3521.4,2.4072]
[1721575975463,0.06943334,3521.5,3521.4,2.4072]
[1721575975805,3.0,3522.3,3521.4,2.4072]
[1721575975806,2.83914,3522.2,3521.4,2.4072]
[1721575976105,2.83947,3521.8,3521.4,2.4072]
[1721575976262,5.90869562,3522.1,3521.4,2.4072]
[1721575976467,0.06945566,3521.7,3521.4,2.4072]
[1721575976664,2.83923,3522.1,3521.4,2.4072]
[1721575976902,3.0,3522.0,3521.4,2.4072]
[1721575977104,3.06947811,3522.0,3521.4,2.4072]
[1721575977317,0.06947811,3522.0,3521.4,2.4072]
[1721575977618,2.83889,3522.5,3521.5,0.24072]
[1721575977767,0.06948521,3521.9,3521.6,2.8452]
[1721575977966,2.83865,3522.8,3521.6,2.8452]
[1721575978162,2.83879,3522.7,3521.7,2.83953]
[1721575978373,2.83879,3522.7,3521.6,2.8452]
[1721575978374,2.83785,3523.8,3521.8,0.55]
[1721575978606,2.83887,3522.6,3522.1,7.23]
[1721575978811,2.83887,3522.6,3521.7,7.23]
[1721575978964,0.06941811,3522.5,3521.8,0.55]
[1721575979407,2.83887,3522.6,3521.8,0.55]
[1721575979604,2.83887,3522.6,3521.7,7.23]
[1721575979605,5.83864,3522.9,3521.7,7.23]
[1721575979764,2.83906,3522.3,3521.7,7.23]
[1721575979970,0.65336959,3522.8,3521.7,7.23]
[1721575980167,0.0694765,3522.2,3521.8,0.05678685]
[1721575980372,2.83857,3522.9,3521.9,2.3053]
[1721575980704,0.283785,3523.7,3521.9,2.3053]
[1721575980705,2.8389,3522.5,3521.9,2.3053]
[1721575980891,2.90822056,3522.8,3521.9,2.3053]
[1721575981064,0.06955751,3522.4,3521.9,2.3053]
[1721575981270,3.0,3523.1,3521.9,2.3053]
[1721575981271,2.83874,3522.7,3521.9,2.3053]
[1721575981513,0.06955309,3522.3,3521.9,2.3053]
[1721575981680,2.83874,3522.7,3521.9,2.3053]
[1721575981868,2.839,3522.4,3521.9,2.3053]
[1721575982069,0.06955965,3522.3,3521.9,2.3053]
[1721575982269,2.90867965,3522.3,3521.9,2.3053]
[1721575982522,0.06955965,3522.3,3521.9,2.3053]
[1721575982672,2.90860965,3522.3,3521.9,2.3053]
[1721575982873,0.283874,3522.7,3521.9,2.3053]
[1721575982874,2.83929,3522.0,3521.9,2.3053]
[1721575983111,3.12999096,3522.2,3521.9,2.3053]
[1721575983112,3.1995488,3522.2,3521.9,2.3053]
[1721575983315,0.06954901,3522.0,3521.9,2.3053]
[1721575983494,3.0,3522.5,3521.9,2.3053]
[1721575983706,0.06954901,3522.0,3521.9,2.3053]
[1721575984011,3.0,3522.6,3521.9,2.3053]
[1721575984197,2.83881,3522.6,3521.9,2.3053]
[1721575984373,2.83904,3522.4,3521.9,2.3053]
[1721575984575,3.22072948,3522.5,3521.9,2.3053]
[1721575984874,0.38183948,3522.5,3521.9,2.3053]
[1721575985274,2.83898,3522.4,3521.9,2.3053]
[1721575985474,0.06955882,3522.4,3521.9,2.3053]
[1721575985782,2.83898,3522.4,3521.9,2.3053]
[1721575985981,0.06956225,3522.3,3521.9,2.3053]
[1721575986373,3.0,3522.8,3521.9,2.3053]
[1721575986684,2.83883,3522.6,3521.9,2.3053]
[1721575986890,2.83919,3522.2,3521.9,2.3053]
[1721575987104,3.06957108,3522.5,3521.9,2.3053]
[1721575987284,0.06955342,3522.1,3521.9,2.3053]
[1721575987472,3.0,3522.6,3521.9,2.3053]
[1721575987679,0.06957108,3522.5,3521.9,2.3053]
[1721575988356,3.0,3522.8,3521.9,2.3053]
[1721575988514,0.06955989,3522.4,3521.9,2.3053]
[1721575988714,3.0,3522.8,3521.9,3.542772]
[1721575988914,0.06956015,3522.3,3521.9,6.382132]
[1721575989116,3.0,3522.8,3521.9,6.382132]
[1721575989446,5.83849,3523.0,3521.9,6.382132]
[1721575989769,0.0695671,3522.9,3522.0,2.83926]
[1721575990054,0.0695671,3522.9,3521.9,3.542772]
[1721575990055,0.66037281,3522.9,3521.9,3.542772]
[1721575990253,0.66037281,3522.9,3521.9,2.3053]
[1721575990415,2.83871,3522.8,3521.9,2.3053]
[1721575990615,3.0,3522.7,3521.9,2.3053]
[1721575990811,5.90829827,3522.7,3521.9,2.3053]
[1721575991454,2.8389,3522.5,3521.9,2.3053]
[1721575991639,2.83899,3522.4,3521.9,2.3053]
[1721575991851,2.83911,3522.3,3521.9,2.3053]
[1721575992055,2.83908,3522.3,3521.9,2.3053]
[1721575992365,0.0695339,3522.2,3521.9,2.3053]
[1721575992568,3.0,3523.3,3521.9,2.3053]
[1721575992733,0.06952949,3522.1,3521.9,2.3053]
[1721575992925,2.83866,3522.8,3521.9,3.542777]
[1721575993164,0.06952507,3522.0,3521.9,2.3053]
[1721575993376,2.83875,3522.7,3521.9,2.3053]
[1721575993575,3.0,3522.6,3521.9,2.3053]
[1721575993754,3.06955156,3522.6,3521.9,2.3053]
[1721575993959,3.0,3522.5,3521.9,2.3053]
[1721575994146,3.89082916,3522.5,3521.9,2.3053]
[1721575994341,0.06954273,3522.4,3521.9,2.3053]
[1721575995172,0.06953832,3522.3,3521.9,2.3053]
[1721575995377,3.0,3522.5,3521.9,2.3053]
[1721575995529,3.0,3522.9,3521.9,2.3053]
[1721575995731,0.06953039,3522.4,3521.9,2.3053]
[1721575995961,3.0,3522.6,3521.9,2.3053]
[1721575996225,0.06951669,3522.3,3521.9,2.3053]
[1721575996427,3.0,3522.8,3521.9,2.3053]
[1721575996738,2.83866,3522.8,3521.9,2.3053]
[1721575996937,3.06954802,3522.7,3521.9,2.3053]
[1721575997325,0.06954802,3522.7,3521.9,5.53358244]
[1721575997529,3.0,3522.9,3521.9,5.53358244]
[1721575997789,0.06954361,3522.6,3521.9,5.53358244]
[1721575997944,0.06955244,3522.8,3521.9,5.53358244]
[1721575998129,3.0,3522.9,3521.9,2.69427244]
[1721575998481,2.83873,3522.7,3521.9,2.3053]
[1721575998684,0.583833,3522.9,3521.9,2.3053]
[1721575998685,0.583833,3522.9,3522.0,2.83926]
[1721575998979,0.06954916,3522.8,3522.3,5.28928]
[1721575999269,0.06954916,3522.8,3522.1,0.05677553]
[1721575999270,2.83821,3523.4,3522.4,5.28926]
[1721575999430,0.06955842,3522.7,3522.4,5.28926]
[1721575999628,2.83821,3523.4,3522.5,1.251926]
[1721575999832,2.83821,3523.4,3522.4,5.28926]
[1721576000132,0.0695849,3523.3,3522.4,2.4503]
[1721576000449,2.83851,3523.0,3522.4,2.4503]
[1721576000779,2.83818,3523.4,3522.4,2.4503]
[1721576000957,0.06958418,3522.9,3522.4,2.4503]
[1721576001286,0.06958418,3522.9,3522.4,2.76866066]
[1721576001287,0.29080042,3522.9,3522.4,2.76866066]
[1721576001427,3.0,3523.3,3522.4,2.76866066]
[1721576001428,2.83889,3522.5,3522.4,2.76866066]
[1721576001634,5.67778,3522.5,3522.4,0.31836066]
[1721576001835,5.74734653,3522.5,3522.4,0.31836066]
[1721576002083,8.74734653,3522.5,3522.4,0.31836066]
[1721576002371,8.74734653,3522.5,3521.5,18.6816377]
[1721576002372,3.06956653,3522.5,3521.5,18.6816377]
[1721576002590,2.8391,3522.3,3521.4,2.4503]
[1721576002731,2.83969,3521.6,3521.4,2.4503]
[1721576002933,2.83946,3521.8,3521.4,2.4503]
[1721576003134,2.90866749,3522.2,3521.4,2.4503]
[1721576003135,2.90904061,3521.5,3521.4,2.4503]
[1721576003339,2.83969,3521.5,3521.4,2.4503]
[1721576003557,2.83981,3521.4,3520.8,2.4503]
[1721576004146,2.8401,3521.1,3520.8,2.4503]
[1721576004371,3.407753,3521.4,3520.8,2.4503]
[1721576004372,2.84018,3520.9,3520.8,2.4503]
[1721576004535,2.84002,3521.1,3520.6,18.6816377]
[1721576004740,0.06920303,3520.9,3520.3,9.6803]
[1721576004973,2.83995,3521.2,3520.3,9.6803]
[1721576005177,0.06920227,3520.8,3520.3,9.6803]
[1721576005689,2.90947227,3520.8,3520.3,9.6803]
[1721576006036,0.06920227,3520.8,3520.3,9.6803]
[1721576006238,2.84042,3520.6,3520.3,9.6803]
[1721576006438,2.84001,3521.2,3520.3,9.6803]
[1721576006671,0.0691296,3520.5,3520.3,9.6803]
[1721576007101,3.0,3521.3,3520.3,9.6803]
[1721576007268,2.83994,3521.2,3520.3,9.6803]
[1721576007469,0.06912518,3520.4,3520.3,9.6803]
[1721576007702,3.0,3521.3,3520.3,9.6803]
[1721576007860,6.70782,3521.3,3520.3,9.6803]
[1721576008064,0.06912518,3520.4,3520.3,9.6803]
[1721576008264,0.06912518,3520.4,3520.3,2.4503]
[1721576008488,2.84002,3521.1,3520.3,2.4503]
[1721576008908,3.86794,3521.3,3520.3,2.4503]
[1721576008909,0.0691517,3521.0,3520.3,2.4503]
[1721576009106,2.84018,3520.9,3520.3,2.4503]
[1721576009408,2.84036,3520.7,3520.3,2.4503]
[1721576010110,0.06917333,3520.6,3520.3,2.4503]
[1721576011074,2.84058,3520.4,3520.3,2.4503]
[1721576011280,2.90959333,3520.6,3520.3,2.4503]
[1721576011476,0.06910293,3520.4,3520.3,2.4503]
[1721576011679,2.84051,3520.5,3520.3,2.4503]
[1721576011978,3.47772732,3520.4,3520.3,2.4503]
[1721576012386,0.63714732,3520.4,3520.3,2.4503]
[1721576013004,3.47772732,3520.4,3519.9,18.6816377]
[1721576013182,2.84067,3520.3,3519.9,18.6816377]
[1721576013383,0.06905049,3520.3,3519.8,2.4503]
[1721576014069,2.84035,3520.7,3519.8,2.4503]
[1721576014371,2.84067,3520.3,3519.8,2.4503]
[1721576014811,0.06899865,3520.2,3519.8,2.4503]
[1721576014967,2.84067,3520.3,3519.8,2.4503]
[1721576015169,0.06903512,3520.1,3519.8,2.4503]
[1721576015416,2.8409,3520.1,3519.8,2.4503]
[1721576015704,2.84066,3520.3,3519.8,2.4503]
[1721576015868,2.9098781,3520.0,3519.8,2.4503]
[1721576016073,2.84082,3520.1,3519.7,7.23]
[1721576016274,0.0689661,3519.9,3519.7,7.23]
[1721576016625,2.841,3519.9,3519.7,7.23]
[1721576016914,2.84107,3519.8,3519.7,7.23]
[1721576017206,2.91003629,3519.8,3519.5,18.6816377]
[1721576017410,0.06896629,3519.8,3519.5,18.6816377]
[1721576017584,2.841,3519.9,3519.5,18.6816377]
[1721576017785,0.06895726,3519.7,3519.5,18.6816377]
[1721576018010,2.841,3519.9,3519.5,18.6816377]
[1721576018307,2.84108,3519.8,3519.5,18.6816377]
[1721576018693,0.06895726,3519.7,3519.5,18.6816377]
[1721576019099,2.84108,3519.8,3519.5,18.6816377]
[1721576019472,0.06896187,3519.7,3519.5,18.6816377]
[1721576019871,2.84084,3520.1,3519.5,18.6816377]
[1721576020113,2.84105,3519.9,3519.5,18.6816377]
[1721576020288,2.84108,3519.8,3519.5,18.6816377]
[1721576020472,2.91000095,3519.8,3519.0,7.23]
[1721576020678,2.84128,3519.6,3519.1,2.286]
[1721576020986,2.84135,3519.5,3519.1,2.286]
[1721576021185,2.84148,3519.3,3519.1,2.286]
[1721576021597,0.06868813,3519.2,3519.1,2.286]
[1721576021928,2.84148,3519.3,3519.1,2.286]
[1721576022298,3.409583,3519.5,3519.1,2.286]
[1721576022299,0.06870886,3519.2,3519.1,2.286]
[1721576022726,3.0,3519.6,3519.1,2.286]
[1721576023031,0.06859412,3519.5,3519.1,2.286]
[1721576023326,2.84141,3519.4,3519.1,2.286]
[1721576023730,2.91008789,3519.3,3519.1,2.286]
[1721576024603,2.84155,3519.2,3519.1,2.286]
[1721576024793,2.91011007,3519.2,3519.1,2.286]
[1721576025214,0.06856007,3519.2,3519.1,2.286]
[1721576025427,2.84139,3519.4,3519.1,2.286]
[1721576025727,5.84123,3519.6,3519.1,2.286]
[1721576025728,0.06861079,3519.2,3519.1,2.286]
[1721576025900,2.84132,3519.5,3519.1,2.286]
[1721576026103,2.84132,3519.5,3518.7,18.6816377]
[1721576026104,0.06858141,3519.2,3518.7,18.6816377]